fUSD/lending_fUSD_20240115
["ID","MTS","AMOUNT","RATE_DAILY","PERIOD"]
[311679659,1705324239793,-245.57684582,0.00028992,2]
[311679661,1705324239806,-3612.70936163,0.00029,15]
[311679664,1705324239824,-230.08829952,0.00029,2]
[311679667,1705324239837,-2931.64415,0.00029,2]
[311679669,1705324239854,-155.8,0.00029027,2]
[311679672,1705324239867,-170.97,0.00029049,2]
[311679674,1705324239880,-4328.7282253,0.000291,2]
[311679677,1705324239895,-153.52122928,0.00029102,2]
[311679679,1705324239909,-207.37856779,0.00029163,2]
[311679684,1705324239924,-342.59,0.00029216,2]
[311679687,1705324239936,-155.8,0.00029223,2]
[311679690,1705324239950,-245.57684582,0.00029257,2]
[311679694,1705324239963,-158.63,0.00029282,2]
[311679698,1705324239977,-500.0,0.00029392,2]
[311679702,1705324239990,-200.0,0.00029392,3]
[311679705,1705324240004,-155.8,0.00029419,2]
[311679709,1705324240017,-1500.0,0.000295,2]
[311679711,1705324240031,-245.57684582,0.00029522,2]
[311679714,1705324240044,-207.37856779,0.00029532,2]
[311679716,1705324240058,-208.0,0.0002957,2]
[311679719,1705324240071,-395.75,0.00029576,2]
[311679721,1705324240083,-155.8,0.00029615,2]
[311679723,1705324240096,-272.79185687,0.00029638,4]
[311679726,1705324240110,-200.0,0.0002976,3]
[311679728,1705324240123,-800.0,0.0002976,5]
[311679731,1705324240136,-245.57684582,0.00029787,2]
[311679733,1705324240148,-150.0,0.00029789,2]
[311679736,1705324240161,-435.12704216,0.00029795,2]
[311679738,1705324240173,-175.39581942,0.000298,2]
[311679740,1705324240187,-13163.45697408,0.000298,2]
[311679743,1705324240199,-155.8,0.00029812,2]
[311679745,1705324240211,-153.52122928,0.0002988,2]
[311679748,1705324240225,-41382.0,0.0002989,4]
[311679750,1705324240237,-151.0,0.0002989,7]
[311679752,1705324240251,-151.0,0.0002989,7]
[311679755,1705324240264,-1343.88729955,0.00029897,2]
[311679757,1705324240277,-768.78926814,0.000299,2]
[311679760,1705324240290,-754.6951725,0.000299,10]
[311679762,1705324240303,-5000.0,0.000299,2]
[311679765,1705324240316,-207.37856779,0.000299,2]
[311679767,1705324240329,-1100.0,0.000299,10]
[311679769,1705324240341,-153.2220508,0.000299,17]
[311679772,1705324240354,-450000.0,0.000299,3]
[311679774,1705324240367,-462272.01,0.000299,4]
[311679777,1705324240380,-478239.71446934,0.0002998,2]
[311679779,1705324240393,-151.0,0.0002998,7]
[311679782,1705324240405,-190.648748,0.0002998,7]
[311679784,1705324240418,-175.161892,0.0002998,7]
[311679786,1705324240433,-175.161892,0.0002998,7]
[311679789,1705324240446,-151.0,0.0002998,7]
[311679791,1705324240458,-1343.88729955,0.00029992,2]
[311679794,1705324240471,-64264.1292624,0.00029995,2]
[311679796,1705324240484,-3187.236777,0.00029995,2]
[311679797,1705324240496,-460.4285341,0.00029995,2]
[311679798,1705324240509,-777.72105174,0.00029996,2]
[311679799,1705324240522,-1343.88729955,0.00029997,2]
[311679800,1705324240535,-1790.70359907,0.00029998,2]
[311679801,1705324240548,-1187.12788416,0.00029998,2]
[311679802,1705324240561,-204.07052689,0.00029999,2]
[311679803,1705324240573,-453.23667961,0.00029999,2]
[311679805,1705324240586,-150.01,0.00029999,2]
[311679807,1705324240600,-786.74803281,0.00029999,2]
[311679808,1705324240613,-382.90619817,0.00029999,2]
[311679809,1705324240626,-500.0,0.00029999,2]
[311679810,1705324240639,-500.0,0.00029999,2]
[311679811,1705324240652,-500.0,0.00029999,2]
[311679812,1705324240665,-500.0,0.00029999,2]
[311679813,1705324240679,-500.0,0.00029999,2]
[311679814,1705324240691,-500.0,0.00029999,2]
[311679815,1705324240704,-500.0,0.00029999,2]
[311679816,1705324240717,-500.0,0.00029999,2]
[311679817,1705324240730,-500.0,0.00029999,2]
[311679818,1705324240743,-500.0,0.00029999,2]
[311679819,1705324240756,-500.0,0.00029999,2]
[311679820,1705324240769,-500.0,0.00029999,2]
[311679821,1705324240784,-500.0,0.00029999,2]
[311679822,1705324240797,-500.0,0.00029999,2]
[311679823,1705324240810,-500.0,0.00029999,2]
[311679824,1705324240823,-500.0,0.00029999,2]
[311679825,1705324240836,-500.0,0.00029999,2]
[311679826,1705324240853,-435.54009865,0.00029999,2]
[311679827,1705324240866,-500.0,0.00029999,2]
[311679828,1705324240879,-500.0,0.00029999,2]
[311679829,1705324240893,-500.0,0.00029999,2]
[311679832,1705324240906,-500.0,0.00029999,2]
[311679834,1705324240919,-500.0,0.00029999,2]
[311679835,1705324240933,-10855.72674231,0.0003,2]
[311679838,1705324241034,-3290.64555306,0.0003,2]
[311679839,1705324241051,-85853.62770463,0.0003,2]
[311679840,1705324241063,-98531.69014779,0.0003,4]
[311679841,1705324241077,-4462.19336513,0.0003,4]
[311679842,1705324241090,-648.26024884,0.0003,4]
[311679843,1705324241103,-1572.87627363,0.0003,2]
[311679844,1705324241115,-690.91027543,0.0003,2]
[311679845,1705324241128,-809.73070415,0.0003,3]
[311679846,1705324241141,-3466.06227411,0.0003,2]
[311679847,1705324241154,-5607.90790267,0.0003,14]
[311679848,1705324241167,-6889.35168135,0.0003,2]
[311679849,1705324241211,-705.20000071,0.0003,2]
[311679850,1705324241600,-1036.368,0.0003,2]
[311679851,1705324242277,-270.1999996,0.0003,2]
[311679854,1705324242298,-560.0,0.0003,2]
[311679860,1705324242328,-1322.46730531,0.0003,2]
[311679864,1705324243150,-610.54472259,0.0003,2]
[311679865,1705324243162,-689.93119256,0.0003,2]
[311679866,1705324243175,-3695.4,0.0003,2]
[311679869,1705324243531,-5998.74659682,0.0003,2]
[311679870,1705324243543,-4813.96577112,0.0003,2]
[311679871,1705324243554,-831.48450349,0.0003,2]
[311679872,1705324243567,-1722.13581197,0.0003,2]
[311679873,1705324243578,-1102.24395468,0.0003,2]
[311679874,1705324243589,-2651.31362016,0.0003,2]
[311679875,1705324243601,-391.25088395,0.0003,2]
[311679876,1705324243612,-395.79247753,0.0003,2]
[311679877,1705324243635,-993.56644484,0.0003,2]
[311679878,1705324243655,-17518.95050401,0.0003,2]
[311679879,1705324243696,-877.23058784,0.0003,2]
[311679880,1705324243715,-4489.16925655,0.0003,2]
[311679893,1705324245692,-32434.68668492,0.0003,2]
[311679894,1705324245703,-260.70151264,0.0003,3]
[311679895,1705324245713,-1008.331485,0.0003,7]
[311679896,1705324245723,-9789.31,0.0003,2]
[311679897,1705324245734,-1531.0,0.0003,7]
[311679898,1705324245749,-1017.0,0.0003,3]
[311679899,1705324245759,-2421.55865755,0.0003,2]
[311679900,1705324245770,-48885.87806603,0.0003,2]
[311679901,1705324245780,-226.53,0.0003,6]
[311679902,1705324245791,-601.59121951,0.0003,2]
[311679903,1705324245800,-2270.0,0.0003,15]
[311679904,1705324245811,-29714.65348035,0.0003,4]
[311679905,1705324245822,-5000.0,0.0003,10]
[311679906,1705324245832,-448.65938781,0.0003,2]
[311679907,1705324245842,-20000.0,0.0003,2]
[311679908,1705324245852,-1000.0,0.0003,30]
[311679909,1705324245862,-4026.73,0.0003,2]
[311679910,1705324245873,-1015.0,0.0003,3]
[311679911,1705324245883,-905.04691943,0.0003,2]
[311679912,1705324245893,-87952.29436155,0.0003,2]
[311679913,1705324245906,-2499.16971345,0.0003,2]
[311679914,1705324245933,-360.34423684,0.0003,2]
[311679915,1705324246351,-306.67142179,0.0003,2]
[311679916,1705324246362,-14729.14865754,0.0003,2]
[311679917,1705324246374,-9173.36549599,0.0003,2]
[311679918,1705324246394,-4316.10755544,0.0003,2]
[311679927,1705324969749,155.07,0.00027841,120]
[311679928,1705325165088,1042.0,0.00022101,2]
[311679929,1705325193800,206.0,0.00021734,2]
[311679996,1705325432403,-362.1013399,0.0002271,2]
[311679997,1705325432445,-21.9295862,0.0002271,2]
[311679998,1705325432459,-614.30502612,0.0002271,2]
[311680003,1705325437755,-2389.24486179,0.0002271,2]
[311680004,1705325437765,-536.15064755,0.00022798,2]
[311680005,1705325437869,-358.01197968,0.00022709,2]
[311680007,1705325440377,-558.11241141,0.00022709,2]
[311680008,1705325440386,-448.14603206,0.00022798,2]
[311680009,1705325440396,-858.2134199,0.000228,2]
[311680010,1705325440891,-11375.19630704,0.000228,2]
[311680011,1705325440902,-3043.0,0.000239,2]
[311680012,1705325440912,-1350.0,0.00025,3]
[311680013,1705325440922,-244.96836501,0.00025427,3]
[311680014,1705325440933,-186.98547293,0.00025427,3]
[311680015,1705325440943,-199.71159993,0.00025427,3]
[311680016,1705325440952,-2509.98558,0.00025427,3]
[311680017,1705325440962,-1000.0,0.00025427,3]
[311680018,1705325440972,-450.27279652,0.00025427,3]
[311680019,1705325440983,-236.14665161,0.00025427,3]
[311680020,1705325440993,-236.14665161,0.00025427,3]
[311680021,1705325441002,-208.29763724,0.00025427,3]
[311680022,1705325441012,-482.83035833,0.00025427,3]
[311680023,1705325441021,-330.81165905,0.00025427,3]
[311680024,1705325441031,-206.0,0.0002556,7]
[311680025,1705325441041,-364.08,0.00025788,2]
[311680026,1705325441051,-1000.0,0.00026449,2]
[311680027,1705325441061,-5000.0,0.00026999,2]
[311680028,1705325441071,-1400.0,0.00027,3]
[311680029,1705325441081,-155.8,0.00027333,2]
[311680030,1705325441092,-13074.24,0.00027337,2]
[311680031,1705325441101,-747.52,0.00027356,2]
[311680032,1705325441111,-170.32119078,0.00027397,2]
[311680034,1705325441121,-250.0,0.000274,2]
[311680036,1705325441130,-347.9,0.00027413,2]
[311680038,1705325441141,-1799.09,0.00027417,2]
[311680039,1705325441151,-250.0,0.00027615,2]
[311680040,1705325441162,-200.0,0.00027633,2]
[311680041,1705325441171,-250.0,0.00027637,2]
[311680043,1705325441182,-275.28,0.00027664,2]
[311680044,1705325441191,-150.0,0.00027672,2]
[311680045,1705325441200,-200.0,0.00027698,2]
[311680046,1705325441209,-311.6,0.00027702,2]
[311680047,1705325441218,-270.31,0.00027706,2]
[311680048,1705325441228,-154.11,0.00027739,2]
[311680049,1705325441238,-254.72,0.00027764,2]
[311680050,1705325441247,-1870.02,0.00027787,2]
[311680051,1705325441257,-200.95,0.00027838,2]
[311680052,1705325441267,-200.0,0.00027841,2]
[311680053,1705325441276,-178.88,0.00027841,2]
[311680054,1705325441286,-492.01,0.00027868,2]
[311680055,1705325441295,-166.0,0.00027924,2]
[311680056,1705325441304,-364.08,0.00028052,2]
[311680057,1705325441314,-158.08,0.00028068,2]
[311680058,1705325441324,-2568.58,0.00028116,2]
[311680059,1705325441334,-155.8,0.00028244,2]
[311680060,1705325441344,-1518.240434,0.000285,2]
[311680061,1705325441353,-275.28,0.00028642,2]
[311680062,1705325441363,-178.88,0.00028769,2]
[311680063,1705325441373,-25867.0,0.00028896,2]
[311680064,1705325441383,-160.81,0.00028951,2]
[311680065,1705325441392,-1500.0,0.00029,2]
[311680066,1705325441401,-155.8,0.00029155,2]
[311680067,1705325441411,-206.0,0.00029387,13]
[311680068,1705325441421,-158.08,0.00029388,2]
[311680069,1705325441431,-1500.0,0.000295,2]
[311680070,1705325441442,-280.60641538,0.00029599,2]
[311680071,1705325441454,-275.28,0.00029621,2]
[311680072,1705325441464,-178.88,0.00029697,2]
[311680073,1705325441474,-190.91895771,0.00029745,4]
[311680074,1705325441483,-500.0,0.0002976,2]
[311680075,1705325441493,-800.0,0.0002976,5]
[311680076,1705325441503,-175.39581942,0.000298,2]
[311680077,1705325441513,-155.53392588,0.000298,2]
[311680078,1705325441523,-143608.77177286,0.000298,3]
[311680079,1705325441722,-0.09660746,0.000298,3]
[311680080,1705325441734,-500.0,0.000298,3]
[311680115,1705325443249,-5692.78377949,0.000298,3]
[311680116,1705325443394,-5985.22365163,0.000298,3]
[311680117,1705325443431,-41792.34140789,0.000298,3]
[311680126,1705325445892,-1243.95742186,0.00026999,5]
[311680127,1705325445903,-2688.91778121,0.000298,6]
[311680128,1705325445913,-2093.12912258,0.000298,3]
[311680129,1705325445926,-422.09056143,0.000298,3]
[311680130,1705325445954,-95697.59669077,0.000298,3]
[311680131,1705325445965,-150.0,0.00029845,2]
[311680132,1705325445975,-155.53392584,0.00029891,2]
[311680133,1705325445985,-163.82054097,0.00029897,2]
[311680134,1705325445995,-4067.11479693,0.00029898,6]
[311680135,1705325446006,-255.81339565,0.00029898,2]
[311680136,1705325446016,-3969.71224033,0.00029898,2]
[311680137,1705325446026,-198.74725172,0.00029898,2]
[311680138,1705325446036,-156.75117607,0.00029898,2]
[311680139,1705325446046,-331.18091377,0.00029898,2]
[311680140,1705325446056,-220.69241614,0.00029898,2]
[311680141,1705325446066,-341.21116514,0.00029898,2]
[311680142,1705325446077,-472.09928176,0.00029898,2]
[311680143,1705325446087,-4680.86238529,0.00029898,2]
[311680144,1705325446097,-8632.52436305,0.00029898,2]
[311680145,1705325446107,-385.00102524,0.00029898,2]
[311680146,1705325446117,-2302.03358731,0.00029898,2]
[311680147,1705325446127,-210.92031935,0.00029898,2]
[311680148,1705325446295,-233.80752851,0.00029898,2]
[311680149,1705325446306,-259.11478358,0.00029898,2]
[311680150,1705325446317,-156.33534246,0.00029898,2]
[311680151,1705325446327,-493.85260773,0.00029898,2]
[311680152,1705325446338,-576.35910875,0.00029898,2]
[311680153,1705325446348,-937.04818772,0.00029898,2]
[311680154,1705325446358,-3930.60839298,0.00029898,2]
[311680155,1705325446369,-408.3744,0.00029898,2]
[311680156,1705325446380,-155.47167839,0.00029899,2]
[311680157,1705325446390,-156.01625889,0.00029899,2]
[311680158,1705325446400,-3117.37725108,0.00029899,2]
[311680159,1705325446411,-390.04705579,0.00029899,2]
[311680160,1705325446421,-59797.88723558,0.000299,2]
[311680161,1705325446436,-993.01947143,0.000299,2]
[311680162,1705325446446,-2000.0,0.000299,3]
[311680163,1705325446457,-58643.6423633,0.000299,2]
[311680164,1705325446629,-42670.0,0.000299,2]
[311680165,1705325446641,-296.09272813,0.000299,2]
[311680166,1705325446652,-1017.22330267,0.000299,2]
[311680167,1705325446665,-978.64808177,0.000299,2]
[311680168,1705325446710,-96394.39352413,0.000299,2]
[311680169,1705325446720,-174.63242407,0.000299,2]
[311680170,1705325446730,-290.08469478,0.000299,2]
[311680171,1705325446739,-1812.0455657,0.000299,2]
[311680172,1705325446749,-363.86694774,0.000299,2]
[311680173,1705325446759,-150.0,0.00029964,2]
[311680174,1705325446769,-155.53392584,0.00029982,2]
[311680175,1705325446779,-237.24469684,0.0002999,2]
[311680176,1705325446789,-1343.88729955,0.00029997,2]
[311680177,1705325446799,-2687.7745991,0.00029997,2]
[311680178,1705325446809,-204.07052689,0.00029998,2]
[311680179,1705325446819,-1187.12788416,0.00029998,2]
[311680180,1705325446828,-1790.70359907,0.00029998,2]
[311680181,1705325446837,-264.58511852,0.00029998,2]
[311680182,1705325446846,-2286.73178047,0.00029998,2]
[311680183,1705325452661,200.0,0.00029091,120]
[311680184,1705325454185,-150.0,0.00029731,2]
[311680185,1705325454197,-150.0,0.00029737,2]
[311680220,1705325454517,-150.0,0.00029739,2]
[311680222,1705325454534,-150.0,0.00029739,2]
[311680224,1705325454543,-150.0,0.00029745,2]
[311680227,1705325454555,-150.0,0.00029749,2]
[311680229,1705325454564,-150.0,0.00029749,2]
[311680231,1705325454573,-150.0,0.00029756,2]
[311680232,1705325454582,-150.0,0.00029762,2]
[311680235,1705325454591,-150.0,0.00029762,2]
[311680236,1705325454600,-150.0,0.00029764,2]
[311680239,1705325454610,-150.0,0.00029768,2]
[311680240,1705325454619,-150.0,0.00029768,2]
[311680242,1705325454628,-150.0,0.00029771,2]
[311680244,1705325454638,-150.0,0.00029779,2]
[311680247,1705325454648,-150.0,0.0002978,2]
[311680249,1705325454657,-150.0,0.00029781,2]
[311680251,1705325454666,-150.0,0.00029783,2]
[311680253,1705325454676,-150.0,0.00029783,2]
[311680255,1705325454685,-150.0,0.00029787,2]
[311680257,1705325454696,-150.0,0.00029788,2]
[311680259,1705325454705,-150.0,0.00029797,2]
[311680261,1705325454714,-150.0,0.00029798,2]
[311680263,1705325454723,-150.0,0.00029799,2]
[311680265,1705325454733,-150.0,0.00029801,2]
[311680267,1705325454743,-127.35831646,0.00029804,2]
[311680269,1705325454755,-568.79942087,0.00029804,2]
[311680271,1705325454764,-235.72857913,0.00029804,2]
[311680273,1705325454776,-6.63123161,0.00029804,2]
[311680275,1705325454785,-150.0,0.00029805,2]
[311680277,1705325454795,-150.0,0.00029807,2]
[311680279,1705325454805,-150.0,0.00029809,2]
[311680281,1705325454814,-150.0,0.00029814,2]
[311680283,1705325454824,-150.0,0.00029814,2]
[311680285,1705325454834,-150.0,0.00029814,2]
[311680287,1705325454843,-150.0,0.00029829,2]
[311680289,1705325454852,-1500.0,0.00029835,2]
[311680291,1705325454862,-1500.0,0.00029837,2]
[311680293,1705325454871,-150.0,0.00029841,2]
[311680295,1705325454880,-150.0,0.00029845,2]
[311680298,1705325454890,-1500.0,0.00029847,2]
[311680299,1705325454899,-1500.0,0.00029848,2]
[311680302,1705325454908,-150.0,0.00029851,2]
[311680303,1705325454918,-150.0,0.00029855,2]
[311680306,1705325454928,-150.0,0.00029855,2]
[311680308,1705325454938,-150.0,0.00029857,2]
[311680309,1705325454949,-150.0,0.00029859,2]
[311680312,1705325454959,-150.0,0.00029867,2]
[311680313,1705325454968,-150.0,0.00029869,2]
[311680316,1705325454978,-150.0,0.00029875,2]
[311680318,1705325454988,-150.0,0.00029876,2]
[311680320,1705325454997,-1500.0,0.00029879,2]
[311680321,1705325455006,-150.0,0.00029882,2]
[311680323,1705325455016,-150.0,0.00029882,2]
[311680324,1705325455026,-1500.0,0.00029882,2]
[311680325,1705325455035,-150.0,0.00029885,2]
[311680326,1705325455045,-150.0,0.0002989,2]
[311680327,1705325455054,-150.0,0.00029893,2]
[311680328,1705325455064,-150.0,0.00029893,2]
[311680329,1705325455073,-150.0,0.00029894,2]
[311680330,1705325455082,-150.0,0.00029896,2]
[311680332,1705325455092,-150.0,0.00029898,2]
[311680334,1705325455102,-384.0309261,0.00029899,2]
[311680336,1705325455111,-431.27928573,0.00029899,2]
[311680338,1705325455122,-529.04001639,0.00029899,2]
[311680340,1705325455132,-4623.99524011,0.00029899,2]
[311680342,1705325455141,-303.26459,0.00029899,2]
[311680344,1705325455151,-1073.99956817,0.00029899,2]
[311680346,1705325455161,-522.85587045,0.00029899,2]
[311680348,1705325455171,-688.35613867,0.00029899,2]
[311680350,1705325455180,-5978.93173061,0.00029899,2]
[311680354,1705325455211,-1500.0,0.00029837,2]
[311680356,1705325455221,-455.99202209,0.00029899,2]
[311680358,1705325455229,-158.21108344,0.00029899,2]
[311680360,1705325455239,-400.34058814,0.00029899,2]
[311680362,1705325455248,-974.66164361,0.00029899,2]
[311680364,1705325455257,-80194.57,0.000299,2]
[311680366,1705325455267,-150.0,0.00029912,2]
[311680368,1705325455276,-150.0,0.00029912,2]
[311680370,1705325455286,-150.0,0.00029912,2]
[311680372,1705325455295,-150.0,0.00029913,2]
[311680374,1705325455305,-150.0,0.00029915,2]
[311680376,1705325455314,-150.0,0.00029915,2]
[311680378,1705325455324,-150.0,0.00029916,2]
[311680380,1705325455333,-150.0,0.00029919,2]
[311680382,1705325455342,-1500.0,0.00029921,2]
[311680384,1705325455352,-150.0,0.00029923,2]
[311680386,1705325455360,-150.0,0.00029927,2]
[311680388,1705325455369,-150.0,0.00029931,2]
[311680390,1705325455379,-1500.0,0.00029933,2]
[311680392,1705325455388,-150.0,0.00029934,2]
[311680394,1705325455397,-150.0,0.00029939,2]
[311680396,1705325455406,-150.0,0.00029942,2]
[311680398,1705325455416,-150.0,0.0002995,2]
[311680401,1705325455426,-150.0,0.00029952,2]
[311680403,1705325455436,-1500.0,0.00029962,2]
[311680405,1705325455446,-150.0,0.00029966,2]
[311680407,1705325455456,-150.0,0.00029968,2]
[311680409,1705325455467,-150.0,0.00029972,2]
[311680411,1705325455476,-150.0,0.00029974,2]
[311680413,1705325455485,-150.0,0.00029975,2]
[311680415,1705325455494,-150.0,0.00029977,2]
[311680417,1705325455504,-150.0,0.00029981,2]
[311680419,1705325455513,-150.0,0.00029983,2]
[311680421,1705325455522,-150.0,0.00029988,2]
[311680423,1705325455531,-150.0,0.0002999,2]
[311680425,1705325455540,-1500.0,0.00029993,2]
[311680427,1705325455549,-150.0,0.00029997,2]
[311680429,1705325455558,-16523.16336558,0.00029998,2]
[311680431,1705325455567,-258.4022,0.00029998,2]
[311680433,1705325455576,-220.26666446,0.00029998,2]
[311680435,1705325455586,-161.06100437,0.00029998,2]
[311680437,1705325455595,-363.56577485,0.00029998,2]
[311680439,1705325455604,-150.779,0.00029998,2]
[311680441,1705325455613,-226.75689251,0.00029999,2]
[311680443,1705325455622,-172.27806036,0.00029999,2]
[311680445,1705325455631,-523.75608307,0.00029999,2]
[311680447,1705325455640,-155.37655705,0.00029999,2]
[311680449,1705325455649,-233.57461259,0.00029999,2]
[311680451,1705325455660,-1763.54384261,0.00029999,2]
[311680453,1705325455669,-156.77132149,0.00029999,2]
[311680455,1705325455678,-162.4414931,0.00029999,2]
[311680457,1705325455687,-188.51594884,0.00029999,2]
[311680459,1705325455698,-313.53157253,0.00029999,2]
[311680461,1705325455707,-369.68840107,0.00029999,2]
[311680463,1705325455717,-150.01,0.00029999,2]
[311680465,1705325455726,-2526.26173439,0.00029999,7]
[311680467,1705325455735,-334.87008511,0.00029999,2]
[311680469,1705325455745,-3294.38484961,0.00029999,2]
[311680471,1705325455754,-100000.0,0.0003,2]
[311680473,1705325455763,-319209.61939678,0.0003,2]
[311680475,1705325455772,-761.0,0.0003,5]
[311680477,1705325455782,-724436.556487,0.0003,2]
[311680479,1705325455791,-537.53468701,0.0003,4]
[311680481,1705325455800,-7000.0,0.0003,7]
[311680483,1705325455809,-7000.0,0.0003,7]
[311680485,1705325455818,-2000.0,0.0003,2]
[311680487,1705325455827,-206.77636635,0.0003,4]
[311680489,1705325455836,-156.48434011,0.0003,4]
[311680491,1705325455845,-374.88994833,0.0003,4]
[311680493,1705325455855,-858.56950078,0.0003,4]
[311680495,1705325455864,-213.01590699,0.0003,2]
[311680497,1705325455873,-160.43974851,0.0003,4]
[311680500,1705325455883,-679.05145156,0.0003,4]
[311680502,1705325455892,-2500.0,0.0003,2]
[311680504,1705325455902,-582.14390202,0.0003,2]
[311680506,1705325455911,-2557.50378318,0.0003,4]
[311680507,1705325455920,-9631.27866074,0.0003,2]
[311680509,1705325455930,-807.17828922,0.0003,4]
[311680511,1705325455942,-905.15967269,0.0003,4]
[311680514,1705325455951,-1761.73219604,0.0003,4]
[311680516,1705325455961,-19052.56985094,0.0003,4]
[311680518,1705325455970,-558.1753081,0.0003,4]
[311680520,1705325455980,-752.63213396,0.0003,4]
[311680521,1705325455989,-254631.75550495,0.0003,4]
[311680524,1705325456003,-829.099827,0.0003,4]
[311680527,1705325456019,-150.0,0.00029873,2]
[311680529,1705325456029,-13686.01233318,0.0003,4]
[311680531,1705325456038,-3101.8985011,0.0003,14]
[311680533,1705325456047,-2000.0,0.0003,2]
[311680534,1705325456056,-200.0,0.0003,2]
[311680537,1705325456066,-13039.26978165,0.0003,3]
[311680541,1705325456104,-318.48266274,0.00029804,2]
[311680544,1705325456114,-949.17609719,0.00029853,2]
[311680547,1705325456139,-261.99999998,0.00029798,2]
[311680559,1705325456240,-2479.384,0.00029798,2]
[311680561,1705325456252,-1233.86748,0.00029798,2]
[311680563,1705325456264,-1355.71633739,0.00029798,2]
[311680565,1705325456273,-1040.5342927,0.00029804,2]
[311680567,1705325456282,-550.82390281,0.00029853,2]
[311680569,1705325456293,-150.0,0.00029865,2]
[311680571,1705325456303,-150.0,0.00029868,2]
[311680573,1705325456313,-150.0,0.00029947,2]
[311680575,1705325456322,-150.0,0.00029989,2]
[311680577,1705325456332,-4146.6654671,0.0003,3]
[311680580,1705325461645,1641.56931934,0.00021734,2]
[311680581,1705325463004,283.37642427,0.00021734,15]
[311680582,1705325463677,201.0,0.00021734,2]
[311680583,1705325465293,396.39973015,0.00022101,2]
[311680584,1705325489450,213.01590699,0.00021734,2]
[311680585,1705325493449,374.88994833,0.00021734,2]
[311680586,1705325495363,156.48434011,0.00021734,2]
[311680587,1705325498171,206.77636635,0.00021734,2]
[311680588,1705325499610,856.54723122,0.00021734,2]
[311680589,1705325502934,160.43974851,0.00021734,2]
[311680590,1705325518169,857.88621714,0.00022101,2]
[311680591,1705325533837,334.87008511,0.00021885,2]
[311680592,1705325553884,201.0,0.00021393,2]
[311680593,1705325554148,201.0,0.00021987,2]
[311680594,1705325584013,210.0,0.00021393,2]
[311680595,1705325598906,974.66164361,0.0002126,2]
[311680596,1705325610345,182.56,0.00021976,10]
[311680597,1705325652502,151.0,0.00027253,120]
[311680602,1705325667396,168.88,0.00021918,2]
[311680603,1705325675149,200.0,0.00021501,2]
[311680604,1705325690367,261.52494838,0.00022175,2]
[311680605,1705325701446,500.0,0.00021522,2]
[311680606,1705325704240,206.0,0.00021393,2]
[311680607,1705325709152,1595.13,0.00021462,2]
[311680608,1705325711770,3080.78,0.00021438,2]
[311680609,1705325713820,160.58264314,0.000222,2]
[311680610,1705325715249,3143.01123917,0.000222,2]
[311680611,1705325715343,1516.99063245,0.000222,2]
[311680612,1705325739407,890.15,0.00021329,2]
[311680613,1705325743343,171.97,0.0002134,2]
[311680614,1705325757904,574.310626,0.00022099,2]
[311680615,1705325764944,201.0,0.00021393,2]
[311680616,1705325774879,170.13,0.00021267,2]
[311680617,1705325779675,1136.01929882,0.00022099,2]
[311680618,1705325779859,5440.4877654,0.00022099,2]
[311680619,1705325779985,300.0,0.000217,7]
[311680620,1705325780050,3327.4590618,0.00022099,2]
[311680621,1705325781343,16194.4605296,0.00022095,2]
[311680622,1705325781414,384.0309261,0.00022099,2]
[311680623,1705325781637,155.0,0.00022099,2]
[311680624,1705325781931,2318.58071486,0.00022099,2]